bitfinex/quotes_ETHUSD_20250711
["timestamp","ask_amount","ask_price","bid_price","bid_amount"]
[1752273004517,1.3103,2925.1,2924.2,11.5701]
[1752273004700,1.3103,2925.1,2924.3,5.701]
[1752273005063,1.3103,2925.1,2924.4,13.886]
[1752273005064,0.50163504,2925.0,2924.4,13.886]
[1752273005346,0.50163504,2925.0,2924.5,5.701]
[1752273005554,0.1811935,2924.9,2924.5,5.701]
[1752273005704,0.4589,2925.5,2924.5,5.701]
[1752273005910,1.903,2925.5,2924.5,5.701]
[1752273006213,1.903,2925.5,2924.4,8.185]
[1752273006214,0.50162919,2925.4,2924.4,8.185]
[1752273006441,0.50162919,2925.4,2924.6,5.701]
[1752273006634,0.19457292,2925.3,2924.6,5.701]
[1752273006802,0.50163212,2925.2,2924.6,5.701]
[1752273007168,0.50163212,2925.2,2924.7,5.702]
[1752273007310,1.4441,2925.1,2924.4,8.185]
[1752273007507,0.69620825,2925.0,2924.8,5.702]
[1752273007815,0.19457321,2925.0,2924.8,5.702]
[1752273008127,0.4589,2925.0,2924.8,5.702]
[1752273008340,1.4441,2925.1,2924.8,5.702]
[1752273008647,1.903,2925.1,2924.9,5.702]
[1752273008819,1.4441,2925.1,2924.9,5.702]
[1752273009020,0.4589,2925.5,2924.9,5.702]
[1752273009242,1.8551,2925.5,2924.9,5.702]
[1752273009565,2.04061,2925.5,2924.9,5.702]
[1752273009724,1.3962,2925.5,2924.9,5.702]
[1752273009925,0.04272335,2925.8,2924.9,5.702]
[1752273010132,1.8551,2925.9,2924.9,5.702]
[1752273010331,1.3962,2925.9,2925.0,10.0]
[1752273010714,1.43891605,2926.3,2925.0,10.0]
[1752273010947,1.3962,2926.3,2925.1,1.8044781]
[1752273011161,1.3962,2926.3,2925.2,0.34184728]
[1752273011328,1.3962,2926.3,2925.1,2.14634321]
[1752273011511,0.1704,2925.2,2924.7,0.26168981]
[1752273011712,0.04271751,2926.2,2924.8,5.703]
[1752273011713,0.1704,2925.0,2924.8,5.703]
[1752273011913,0.4589,2925.9,2924.9,0.1819]
[1752273012112,0.4589,2925.9,2925.0,5.703]
[1752273012571,0.4589,2925.9,2925.1,5.702]
[1752273012772,0.1704,2925.1,2924.5,10.1819]
[1752273013061,0.4589,2925.9,2924.6,5.702]
[1752273013277,0.04271751,2926.2,2924.7,10.0]
[1752273013468,0.04271751,2926.2,2924.7,10.52381089]
[1752273013647,0.1704,2924.9,2924.7,10.1819]
[1752273013831,0.1704,2924.9,2924.8,0.52380371]
[1752273014040,0.1704,2924.9,2924.5,11.870886]
[1752273014216,0.04272335,2925.8,2924.8,5.702]
[1752273014524,0.04272335,2925.8,2924.6,0.1819]
[1752273014715,0.04272335,2925.8,2924.5,11.870886]
[1752273014915,1.8551,2925.7,2924.7,10.0]
[1752273015116,0.04272627,2925.6,2924.7,10.0]
[1752273015353,0.4589,2925.5,2924.5,10.0]
[1752273015536,0.04272919,2925.4,2924.8,5.702]
[1752273015745,1.3962,2925.3,2924.0,10.0]
[1752273015927,1.8551,2925.3,2924.2,10.0]
[1752273016327,1.8551,2925.3,2924.1,9.64880047]
[1752273016532,0.1704,2924.2,2924.1,8.189]
[1752273016922,0.1704,2924.2,2924.1,13.891]
[1752273017268,0.1704,2924.2,2924.1,8.189]
[1752273017480,0.1704,2924.2,2924.1,13.891]
[1752273017760,0.1704,2924.2,2924.1,25.3174]
[1752273017921,0.1704,2924.2,2924.1,23.891]
[1752273018323,0.1704,2924.2,2924.1,13.891]
[1752273018550,0.1704,2924.2,2924.1,8.189]
[1752273018858,2.0261,2924.2,2924.1,13.891]
[1752273019233,2.22871,2924.2,2924.1,13.891]
[1752273019419,2.22871,2924.2,2924.1,8.189]
[1752273019623,2.22871,2924.2,2924.1,13.892]
[1752273020045,2.22871,2924.2,2923.6,0.002]
[1752273020265,0.04274819,2924.1,2923.6,0.002]
[1752273020468,1.3962,2923.9,2923.6,0.002]
[1752273020768,0.04275258,2923.8,2923.6,0.002]
[1752273021066,0.1704,2923.6,2922.5,0.002]
[1752273021284,0.50225696,2923.5,2922.6,5.702]
[1752273021424,1.326,2923.7,2922.7,10.0]
[1752273021624,0.4595,2924.0,2922.7,0.1819]
[1752273021826,1.326,2924.1,2923.1,0.34209227]
[1752273022026,1.326,2924.1,2922.8,0.34213453]
[1752273022278,0.04274965,2924.0,2923.0,10.0]
[1752273022477,0.18282497,2923.9,2923.0,10.0]
[1752273023129,1.7855,2924.5,2923.1,0.1819]
[1752273023332,0.1704,2923.2,2923.1,0.52400256]
[1752273023668,0.1704,2923.2,2923.1,16.22600256]
[1752273023965,0.1704,2923.2,2923.1,16.04410256]
[1752273024166,0.1704,2923.2,2923.1,15.702]
[1752273025068,0.1704,2923.2,2923.1,24.23710256]
[1752273025436,0.1704,2923.2,2923.1,25.13874585]
[1752273025635,0.1704,2923.2,2923.1,25.48084841]
[1752273026268,0.1704,2923.2,2923.1,18.192]
[1752273026431,0.1704,2923.2,2923.1,23.894]
[1752273026638,0.1704,2923.2,2923.1,18.192]
[1752273026970,0.1704,2923.2,2923.1,24.41800256]
[1752273027874,0.1704,2923.2,2923.1,18.192]
[1752273028095,0.1704,2923.2,2923.1,13.894]
[1752273028770,0.1704,2923.2,2923.1,18.192]
[1752273028971,0.1704,2923.2,2923.1,24.23610256]
[1752273029183,0.1704,2923.2,2923.1,18.192]
[1752273029480,0.1704,2923.2,2923.1,23.894]
[1752273029779,0.1704,2923.2,2923.1,18.192]
[1752273029949,0.1704,2923.2,2923.1,23.894]
[1752273030285,0.1704,2923.2,2923.1,13.894]
[1752273030938,0.67266135,2923.2,2923.1,13.895]
[1752273031172,2.10746135,2923.2,2922.8,4.26]
[1752273031480,1.4348,2922.7,2922.5,0.002]
[1752273031683,0.04277013,2922.6,2922.5,0.002]
[1752273031993,0.4595,2923.2,2922.5,0.002]
[1752273032286,0.4595,2923.2,2922.7,10.0]
[1752273032448,1.4348,2923.3,2922.7,10.0]
[1752273032774,1.93705404,2923.7,2922.7,10.34214425]
[1752273032976,0.71384778,2923.6,2922.7,10.0]
[1752273033282,0.71384778,2923.6,2922.6,5.8839]
[1752273033283,1.4348,2923.7,2922.5,0.002]
[1752273033436,1.17348737,2923.6,2922.9,10.0]
[1752273033755,0.4595,2923.6,2922.9,10.0]
[1752273034073,0.71385675,2923.5,2922.9,10.0]
[1752273034278,0.71385675,2923.4,2922.9,10.0]
[1752273034490,0.71385675,2923.3,2922.9,10.0]
[1752273034691,0.1704,2922.9,2922.5,0.002]
[1752273034859,0.04275843,2923.4,2922.7,10.0]
[1752273035046,0.71337091,2923.3,2922.8,13.896]
[1752273035250,0.04275843,2923.4,2922.8,13.896]
[1752273035251,0.71337091,2923.2,2922.9,10.0]
[1752273035474,0.71337091,2923.1,2922.9,10.0]
[1752273035785,0.04275843,2923.4,2922.9,10.0]
[1752273036086,0.4595,2923.3,2923.0,5.702]
[1752273036495,0.0427555,2923.6,2923.0,5.702]
[1752273036690,0.1704,2923.0,2922.8,8.194]
[1752273036902,0.50226574,2922.9,2922.8,8.194]
[1752273037188,1.88306574,2922.9,2922.8,13.896]
[1752273037359,1.88306574,2922.9,2922.8,8.195]
[1752273037564,2.07137231,2922.9,2922.8,8.195]
[1752273038615,2.07137231,2922.9,2922.8,13.896]
[1752273038970,2.07137231,2922.9,2922.8,8.196]
[1752273039220,2.07137231,2922.9,2922.5,0.002]
[1752273039221,1.3709,2922.7,2922.5,0.002]
[1752273039541,0.04277013,2922.6,2922.5,0.002]
[1752273039673,0.23008714,2922.6,2922.5,0.002]
[1752273039872,0.68958714,2922.6,2922.5,0.002]
[1752273040332,1.3709,2922.7,2922.5,0.002]
[1752273040333,1.3709,2922.7,2922.5,5.703]
[1752273040620,0.4595,2922.9,2922.5,5.703]
[1752273040774,1.41366282,2923.1,2922.5,5.703]
[1752273041118,1.3709,2923.1,2922.5,5.703]
[1752273041296,0.50225989,2923.3,2922.5,5.703]
[1752273041297,0.4595,2923.3,2922.5,5.703]
[1752273041803,0.04275843,2923.4,2922.6,10.0]
[1752273042488,2.29651297,2923.9,2922.6,11.5703]
[1752273042679,0.71167803,2923.8,2922.7,0.1819]
[1752273042872,0.71167803,2923.7,2922.9,10.0]
[1752273043211,0.04275258,2923.8,2922.9,10.0]
[1752273043417,0.71155534,2923.7,2922.9,10.0]
[1752273043733,1.3709,2923.9,2923.2,0.34208033]
[1752273043934,0.7119828,2923.8,2923.4,10.0]
[1752273044078,0.88286185,2924.2,2923.4,10.0]
[1752273044282,0.71192259,2924.1,2923.4,10.0]
[1752273044482,0.71192259,2924.0,2923.6,0.34204168]
[1752273044819,0.88286185,2924.7,2924.6,0.3419271]
[1752273044976,0.88286185,2924.9,2924.8,0.34190094]
[1752273045173,0.71235559,2924.9,2924.7,10.1819]
[1752273045418,0.88286185,2925.4,2924.7,13.40379]
[1752273045737,0.88286185,2925.2,2924.7,10.0]
[1752273045900,0.71254866,2925.3,2924.7,10.0]
[1752273045901,0.71254866,2925.1,2924.7,10.0]
[1752273046098,0.71254866,2925.0,2924.7,10.0]
[1752273046305,0.88286185,2925.3,2924.7,10.0]
[1752273046501,0.71248747,2925.2,2924.7,13.5675]
[1752273046817,0.71248747,2925.1,2924.7,13.3856]
[1752273047032,0.71248747,2925.0,2924.7,10.0]
[1752273047329,0.71248747,2924.9,2924.7,10.0]
[1752273047530,0.71248747,2924.8,2924.7,10.0]
[1752273047747,0.71248747,2924.8,2924.7,10.1819]
[1752273047886,0.71248747,2924.8,2924.7,13.59259936]
[1752273048587,0.71248747,2924.8,2924.7,13.41069936]
[1752273048786,0.71248747,2924.8,2924.7,10.0]
[1752273048984,0.71248747,2924.8,2924.7,10.1819]
[1752273049223,0.71248747,2924.8,2924.7,10.0]
[1752273050860,0.88286185,2925.2,2924.7,10.0]
[1752273051032,0.04272481,2925.7,2924.7,10.0]
[1752273051033,1.1885436,2925.1,2924.7,10.0]
[1752273051361,0.1704,2924.7,2924.6,23.856]
[1752273051536,0.1704,2924.7,2924.6,33.856]
[1752273052225,0.1704,2924.7,2924.6,34.0379]
[1752273052567,0.71384706,2925.8,2924.7,10.0]
[1752273052730,1.3322,2926.3,2925.2,0.34185067]
[1752273052928,0.001,2926.4,2925.3,11.39]
[1752273053134,0.001,2926.4,2925.4,1.17318537]
[1752273053566,0.1704,2925.7,2925.6,0.34181022]
[1752273053860,0.1704,2925.7,2925.6,11.389]
[1752273054061,0.1704,2925.7,2925.6,11.73081022]
[1752273054358,0.1704,2925.7,2925.6,13.16990507]
[1752273054560,0.1704,2925.7,2925.6,13.05539193]
[1752273054721,0.1704,2926.1,2925.6,12.88398171]
[1752273054922,0.1704,2926.1,2926.0,0.34176349]
[1752273055262,0.1704,2926.1,2926.0,11.386]
[1752273055558,0.1704,2926.1,2926.0,12.86636349]
[1752273055761,0.001,2926.4,2926.2,0.34172933]
[1752273055961,0.001,2926.4,2926.0,12.86636349]
[1752273055962,0.1714,2926.4,2926.3,11.386]
[1752273056322,0.001,2926.4,2926.3,21.936]
[1752273056521,0.001,2926.4,2926.3,21.64452451]
[1752273056836,0.001,2926.4,2926.3,24.8354701]
[1752273057054,0.001,2926.4,2926.3,25.17719856]
[1752273057250,0.001,2926.4,2926.3,25.72719856]
[1752273057450,0.001,2926.4,2926.3,25.89759856]
[1752273057775,0.001,2926.4,2926.3,13.6198701]
[1752273057962,0.001,2926.4,2926.3,15.691]
[1752273058143,0.001,2926.4,2926.3,10.0]
[1752273058346,0.001,2926.4,2926.3,15.69]
[1752273059191,0.001,2926.4,2926.3,10.0]
[1752273059341,0.001,2926.4,2926.3,15.69]
[1752273060096,0.001,2926.4,2926.3,10.0]
[1752273060283,1.4259,2926.3,2924.5,10.60686043]
[1752273060483,0.1704,2924.9,2924.6,14.93768604]
[1752273060671,0.19015,2926.2,2924.6,14.93768604]
[1752273060877,0.1704,2925.3,2924.8,0.51230157]
[1752273061075,0.001,2926.4,2925.3,0.55]
[1752273061305,0.001,2926.4,2925.7,10.43533139]
[1752273061306,0.1704,2926.2,2925.7,10.43533139]
[1752273061514,0.001,2926.4,2926.0,0.34176349]
[1752273061720,0.001,2926.4,2926.3,0.34172846]
[1752273061929,0.001,2926.4,2926.3,22.43912846]
[1752273062223,0.001,2926.6,2926.5,0.3417051]
[1752273062371,0.4746,2928.1,2926.6,10.0]
[1752273062577,0.1704,2927.1,2926.9,0.34165656]
[1752273062772,0.4746,2928.4,2927.1,10.0]
[1752273063042,0.04268688,2928.3,2927.2,5.688]
[1752273063331,0.04268834,2928.2,2927.2,5.688]
[1752273063534,0.4746,2928.1,2927.3,10.0]
[1752273063879,0.04269125,2928.0,2927.4,11.374]
[1752273064286,0.4746,2928.1,2927.4,11.374]
[1752273064507,0.17301,2928.1,2927.4,11.374]
[1752273064709,1.1897,2928.8,2927.5,10.0]
[1752273065017,0.51728105,2928.7,2927.7,10.0]
[1752273065184,0.4746,2928.7,2927.7,10.0]
[1752273065381,1.1897,2928.8,2927.7,13.3817]
[1752273065627,1.1897,2928.8,2927.9,10.0]
[1752273065778,1.1897,2928.8,2928.0,11.371]
[1752273066736,1.6643,2929.1,2928.1,10.0]
[1752273066880,1.6643,2929.1,2928.0,11.62308901]
[1752273066881,1.6643,2929.1,2928.2,11.37]
[1752273067816,1.1907,2929.4,2928.3,10.0]
[1752273068016,1.1907,2929.4,2928.5,10.0]
[1752273068326,1.1907,2929.4,2928.6,11.369]
[1752273068910,1.1907,2929.4,2928.7,10.0]
[1752273069227,0.001,2929.4,2928.7,10.0]
[1752273071498,1.7263,2929.3,2928.6,11.369]
[1752273071804,0.69427085,2929.2,2928.8,8.183]
[1752273072010,0.4746,2929.1,2928.8,8.183]
[1752273072185,0.04267668,2929.0,2928.9,5.682]
[1752273072381,0.51727668,2929.0,2928.8,8.183]
[1752273072782,0.51727668,2929.0,2928.9,8.182]
[1752273073123,1.76897668,2929.0,2928.9,8.182]
[1752273073320,9.0538724,2929.0,2926.2,8.35969805]
[1752273073524,9.0538724,2929.0,2926.8,0.1704]
[1752273073525,0.1704,2927.7,2926.8,0.1704]
[1752273073676,0.1704,2927.3,2926.8,0.1704]
[1752273074123,0.1704,2927.3,2927.0,10.0]
[1752273074676,1.2517,2928.1,2926.2,0.4544819]
[1752273074677,0.4746,2927.9,2926.2,0.4544819]
[1752273074901,0.1704,2926.9,2926.4,0.1704]
[1752273075181,0.1704,2926.9,2926.6,10.0]
[1752273075408,0.1704,2926.9,2926.5,13.0552121]
[1752273075409,0.1704,2926.9,2926.8,10.0]
[1752273076043,1.2517,2928.1,2926.8,19.25135989]
[1752273076251,0.4746,2928.3,2926.9,0.3416584]
[1752273076252,0.1704,2927.4,2926.9,0.3416584]
[1752273076428,0.1704,2927.4,2927.1,10.0]
[1752273076748,0.1704,2927.4,2927.2,5.679]
[1752273077040,0.4746,2928.0,2927.3,10.0]
[1752273077243,0.4746,2928.0,2926.5,13.0552121]
[1752273077244,1.2517,2927.9,2926.5,13.0552121]
[1752273077451,0.1704,2927.3,2926.5,12.436]
[1752273077747,0.47969417,2927.8,2926.5,12.436]
[1752273077748,0.437,2927.5,2926.7,10.0]
[1752273078058,0.1704,2926.6,2926.5,12.436]
[1752273078414,0.1704,2926.6,2926.5,18.115]
[1752273078805,0.6074,2926.6,2926.5,18.115]
[1752273079345,1.669,2926.6,2926.5,12.436]
[1752273079670,1.669,2926.6,2924.2,8.35969805]
[1752273079843,1.232,2926.4,2924.5,0.34193149]
[1752273080000,1.232,2926.2,2924.5,0.34193739]
[1752273080199,0.47971897,2926.1,2924.5,0.34193739]
[1752273080408,0.47971897,2926.1,2924.5,0.79628523]
[1752273080608,0.47971897,2926.1,2924.3,0.34195903]
[1752273080813,1.232,2926.0,2925.2,5.678]
[1752273081042,1.232,2926.0,2924.0,0.41330425]
[1752273081043,0.47972189,2925.9,2924.5,0.1780038]
[1752273081342,1.232,2925.7,2924.6,5.678]
[1752273081518,1.232,2925.5,2924.6,5.678]
[1752273081715,0.47972919,2925.4,2924.0,0.17802451]
[1752273081946,0.17117292,2925.3,2924.1,6.02097846]
[1752273082104,0.17117292,2925.3,2924.1,6.02098185]
[1752273082509,1.232,2925.5,2924.2,8.35969805]
[1752273082736,1.232,2925.5,2924.3,10.0]
[1752273082904,0.437,2925.8,2924.3,10.0]
[1752273083258,0.437,2925.8,2924.8,0.34190302]
[1752273083456,0.437,2925.8,2925.0,10.0]
[1752273083680,0.437,2925.8,2924.0,0.17802451]
[1752273083966,1.27472481,2925.7,2924.0,0.52001496]
[1752273084162,1.2447,2925.5,2924.0,0.17802451]
[1752273084384,0.60817248,2925.6,2924.0,0.17802451]
[1752273084385,1.2447,2925.3,2924.0,0.17802451]
[1752273084692,1.2447,2925.0,2924.1,5.678]
[1752273084821,1.2447,2924.8,2924.2,5.679]
[1752273085019,1.2447,2924.8,2923.5,0.1780846]
[1752273085020,0.47973942,2924.7,2924.3,8.185]
[1752273085222,1.2447,2924.6,2922.2,8.80033005]
[1752273085420,1.45988628,2924.5,2924.4,8.185]
[1752273085663,1.72444234,2924.5,2924.4,8.185]
[1752273085862,1.2447,2924.4,2923.1,0.17810309]
[1752273086065,1.2447,2924.4,2923.2,0.3420824]
[1752273086360,1.2447,2924.4,2923.1,0.52020219]
[1752273086546,1.2447,2924.4,2923.7,5.678]
[1752273086925,0.47974527,2924.3,2923.8,5.68]
[1752273087127,0.17244453,2924.2,2923.8,5.68]
[1752273087322,0.47974819,2924.1,2923.8,5.68]
[1752273087624,1.2447,2923.9,2923.1,0.17810309]
[1752273087970,1.2447,2923.9,2923.7,3.158]
[1752273087971,1.28745112,2923.9,2923.7,3.158]
[1752273088127,0.437,2923.8,2923.7,3.158]
[1752273088654,0.47975258,2923.8,2923.7,5.679]
[1752273088821,0.60944526,2923.8,2923.7,5.679]
[1752273089169,0.437,2923.8,2923.7,5.679]
[1752273089572,1.2447,2923.9,2923.7,5.679]
[1752273089812,0.437,2924.2,2923.7,5.679]
[1752273089935,1.2484,2924.4,2923.7,5.679]
[1752273090128,1.2484,2924.4,2923.7,6.2471]
[1752273090388,0.437,2924.3,2923.7,5.679]
[1752273090589,1.2484,2924.4,2923.7,5.679]
[1752273090731,0.437,2924.7,2923.8,10.0]
[1752273091252,0.437,2924.7,2923.8,10.34201784]
[1752273091569,1.2484,2924.8,2924.0,0.34198762]
[1752273091768,0.437,2925.5,2924.2,0.34197387]
[1752273091936,1.2484,2925.6,2923.8,20.27598216]
[1752273091937,0.1704,2924.6,2924.5,0.34193879]
[1752273092138,0.1704,2924.6,2924.5,21.359]
[1752273092339,0.1704,2924.6,2924.5,23.4949]
[1752273092542,0.1704,2924.6,2924.5,23.83683879]
[1752273092927,0.1704,2924.6,2924.5,23.4949]
[1752273093132,0.1704,2924.6,2924.5,21.359]
[1752273093926,0.1704,2924.6,2924.5,21.70093879]
[1752273094758,8.0,2926.9,2924.5,21.70093879]
[1752273094759,1.0576,2926.2,2924.6,10.0]
[1752273095067,0.1704,2925.7,2925.2,10.0]
[1752273095267,0.1704,2925.7,2925.4,10.0]
[1752273095847,0.437,2926.3,2925.4,10.0]
[1752273096635,0.04271751,2926.2,2925.4,10.0]
[1752273097269,0.04271751,2926.2,2925.3,11.357]
[1752273097270,1.4946,2926.1,2925.3,11.357]
[1752273097471,0.1704,2925.4,2925.3,21.357]
[1752273098547,0.1704,2925.4,2925.3,11.354]
[1752273098752,1.7281,2925.4,2925.3,11.354]
[1752273099946,1.7281,2925.4,2925.3,11.352]
[1752273100150,1.90091,2925.4,2925.3,11.352]
[1752273100362,1.7281,2925.4,2925.3,11.352]
[1752273104038,0.1704,2925.4,2925.3,11.352]
[1752273106555,0.1704,2925.4,2924.7,12.448]
[1752273106556,0.6074,2925.4,2924.7,12.448]
[1752273106740,0.6074,2925.4,2924.8,5.673]
[1752273106741,1.4847,2925.4,2924.8,5.673]
[1752273107350,0.04273066,2925.3,2924.8,5.673]
[1752273107545,0.04273066,2925.3,2924.7,12.448]
[1752273107546,0.48933066,2925.3,2924.7,12.448]
[1752273107899,0.48933066,2925.3,2924.9,5.673]
[1752273108260,0.4466,2925.3,2924.9,5.673]
[1752273108666,1.0477,2925.4,2924.9,5.673]
[1752273109063,0.4466,2925.3,2924.9,5.673]
[1752273109269,5.18533212,2925.2,2924.7,12.448]
[1752273109582,0.96513321,2925.1,2924.8,5.672]
[1752273109748,0.4466,2925.1,2924.8,5.672]
[1752273110179,4.696,2925.2,2924.8,5.672]
[1752273111057,0.4466,2925.1,2924.8,5.672]
[1752273111262,4.696,2925.2,2924.7,12.448]
[1752273111263,0.4466,2925.0,2924.9,11.344]
[1752273111580,4.696,2925.2,2924.9,11.344]
[1752273112183,5.8242,2925.8,2925.0,10.0]
[1752273112370,5.8242,2925.8,2925.2,10.0]
[1752273112572,5.8242,2925.8,2925.3,11.343]
[1752273112787,6.2708,2925.8,2925.3,11.343]
[1752273113285,4.696,2925.8,2925.3,11.343]
[1752273113991,4.696,2925.8,2925.4,18.53083071]
[1752273114195,4.696,2925.8,2925.6,10.34180979]
[1752273114392,4.696,2925.8,2925.7,21.341]
[1752273115884,4.696,2925.8,2925.7,21.68279854]
[1752273116113,4.696,2926.4,2925.7,11.68279051]
[1752273116310,0.001,2926.6,2926.2,0.34173954]
[1752273116474,0.001,2926.6,2926.4,10.0]
[1752273116695,0.001,2926.6,2926.5,21.34]
[1752273116899,0.001,2926.6,2926.5,21.338]
[1752273117699,0.001,2926.6,2926.5,21.6797051]
[1752273117700,0.1714,2926.6,2926.5,21.6797051]
[1752273117882,0.1714,2926.6,2926.5,23.88184724]
[1752273118269,0.1714,2926.6,2926.5,23.54014214]
[1752273118494,0.1714,2926.6,2926.5,21.338]
[1752273119712,0.618,2926.6,2926.5,11.338]
[1752273119971,0.1714,2926.6,2926.5,11.336]
[1752273120167,5.314,2926.6,2925.5,0.34181424]
[1752273120366,0.1704,2925.8,2925.6,6.52008142]
[1752273120617,1.5637,2926.1,2925.6,5.667]
[1752273120823,0.4466,2925.8,2925.4,8.189]
[1752273120974,0.1704,2925.4,2924.8,0.002]
[1752273121318,1.1171,2925.7,2924.9,5.666]
[1752273121475,0.48932627,2925.6,2924.9,5.666]
[1752273122118,1.2875,2924.9,2924.8,0.002]
[1752273122327,1.2875,2924.9,2924.8,5.668]
[1752273122486,1.7341,2924.9,2924.8,5.668]
[1752273122974,0.1704,2924.9,2924.8,5.668]
[1752273123176,0.1704,2924.9,2924.8,0.002]
[1752273123374,0.1704,2924.9,2924.8,5.667]
[1752273123830,0.1704,2924.9,2924.8,16.00890371]
[1752273124119,0.4466,2926.2,2924.8,6.08030425]
[1752273124120,1.1171,2926.2,2924.8,6.08030425]
[1752273124335,0.1704,2925.5,2925.4,0.34182722]
[1752273124626,0.1704,2925.5,2925.4,16.00682722]
[1752273124828,0.1704,2925.5,2925.4,17.60750994]
[1752273124979,0.1704,2925.5,2925.4,22.446]
[1752273125383,0.617,2925.5,2925.4,18.111]
[1752273125830,1.7341,2925.5,2925.4,18.111]
[1752273126882,0.1704,2925.5,2925.4,12.446]
[1752273127094,0.1704,2925.5,2925.4,18.11]
[1752273128114,0.1704,2925.5,2925.4,28.11]
[1752273128480,0.617,2925.5,2925.4,18.109]
[1752273128700,0.1704,2925.5,2925.4,18.109]
[1752273129033,0.617,2925.5,2925.4,18.109]
[1752273129554,0.1704,2925.5,2925.4,29.9199]
[1752273129706,0.1704,2925.5,2925.4,30.26173359]
[1752273130579,0.1704,2925.5,2925.4,29.9199]
[1752273131012,0.1704,2925.5,2925.4,28.109]
[1752273131204,0.1704,2925.5,2925.4,28.45083359]
[1752273131708,0.001,2926.6,2925.9,0.34176901]
[1752273131907,0.001,2926.6,2926.1,10.0]
[1752273132203,0.001,2926.6,2926.2,11.325]
[1752273132460,0.001,2926.6,2926.3,10.0]
[1752273132617,0.001,2926.6,2926.4,5.662]
[1752273132815,0.4466,2926.5,2925.7,0.25339531]
[1752273133019,0.4466,2926.5,2925.9,10.0]
[1752273133216,1.1473,2926.4,2925.2,0.34185182]
[1752273133436,0.4466,2926.3,2925.5,5.662]
[1752273133608,1.1473,2926.4,2925.7,0.34178765]
[1752273133809,0.001,2926.6,2925.8,5.661]
[1752273134031,0.001,2926.6,2926.0,0.34175602]
[1752273134232,0.001,2926.6,2926.1,5.661]
[1752273134409,0.001,2926.6,2926.2,10.0]
[1752273134605,0.001,2926.6,2926.4,10.0]
[1752273134988,0.001,2926.6,2925.4,22.71337966]
[1752273134989,0.4466,2926.5,2925.4,12.446]
[1752273135113,0.4466,2926.5,2925.5,5.661]
[1752273135310,0.4466,2926.5,2925.4,12.78783161]
[1752273135505,0.04271459,2926.4,2925.4,13.75896851]
[1752273135848,0.04271459,2926.4,2925.6,10.0]
[1752273136054,0.4466,2926.3,2925.7,5.66]
[1752273136266,0.4466,2926.3,2925.8,10.0]
[1752273136476,0.4466,2926.3,2925.9,5.66]
[1752273136772,0.001,2926.6,2925.9,5.66]
[1752273136924,0.001,2926.6,2926.0,10.0]
[1752273137124,0.001,2926.6,2926.1,5.66]
[1752273137358,0.001,2926.6,2926.3,0.34172712]
[1752273137540,0.001,2926.6,2926.4,11.32]
[1752273137944,0.001,2926.6,2926.4,11.66171557]
[1752273138143,0.001,2926.6,2926.4,12.52034529]
[1752273138343,0.001,2926.6,2926.5,0.3417051]
[1752273138557,0.001,2926.6,2926.4,12.52034529]
[1752273139067,0.001,2926.6,2926.5,0.3417051]
[1752273140032,0.00016885,2926.6,2926.5,0.3417051]
[1752273140374,0.00016885,2926.6,2926.5,2.25219731]
[1752273140576,0.001,2927.8,2927.7,0.34156505]
[1752273140892,0.001,2927.8,2927.7,29.84356505]
[1752273141097,0.001,2927.8,2927.7,29.502]
[1752273141912,0.4426,2927.8,2927.7,19.502]
[1752273142818,0.4426,2927.8,2926.5,1.36049221]
[1752273142954,0.1704,2926.5,2926.4,0.25540013]
[1752273143153,0.1704,2926.3,2925.8,10.26737966]
[1752273143394,0.4416,2927.2,2925.8,0.40056482]
[1752273143570,0.1704,2926.1,2925.6,0.512208]
[1752273143922,0.1704,2926.1,2925.6,0.51220929]
[1752273144198,0.1704,2926.1,2925.7,5.656]
[1752273144780,0.1704,2926.1,2925.9,0.34176629]
[1752273145098,0.1704,2926.1,2926.0,12.441]
[1752273145391,0.1704,2926.1,2926.0,19.68186349]
[1752273145594,0.1704,2926.5,2926.3,0.34172082]
[1752273145809,0.1704,2926.5,2926.4,5.99671678]
[1752273146016,0.1704,2926.5,2926.1,0.34174485]
[1752273146215,0.1704,2926.5,2926.2,7.10790049]
[1752273146354,0.4416,2927.0,2926.3,5.654]
[1752273147192,0.1704,2926.3,2926.0,13.6851]
[1752273147392,0.4416,2927.0,2926.1,5.654]
[1752273147700,0.4416,2927.0,2926.2,10.0]
[1752273147869,0.1704,2926.5,2926.4,0.3417095]
[1752273148198,0.1704,2926.5,2926.4,15.9947095]
[1752273148399,0.1704,2926.5,2926.4,10.0]
[1752273148584,0.1704,2926.5,2926.4,15.653]
[1752273148788,0.1704,2926.5,2926.4,17.2183]
[1752273148969,0.1704,2926.5,2926.4,10.0]
[1752273149295,0.1704,2926.5,2926.4,15.653]
[1752273150070,0.001,2927.8,2926.4,15.653]
[1752273150071,4.696,2927.7,2926.4,15.653]
[1752273150274,0.1704,2927.5,2927.1,10.0]
[1752273150503,0.1704,2927.5,2927.3,10.34160442]
[1752273150665,0.1704,2927.5,2927.4,23.81126049]
[1752273151458,0.1704,2927.5,2927.4,21.305]
[1752273151997,0.612,2927.5,2926.4,0.1704]